[Event "Israeli Women Championship 2022"]
[Site "Yosiah Arad"]
[Date "2022.12.09"]
[Round "5.2"]
[White "Kluchik, Julia"]
[Black "Shvayger, Yuliya"]
[Result "0-1"]
[ECO "E01"]
[WhiteElo "1887"]
[BlackElo "2350"]
[Annotator "TA"]
[PlyCount "72"]
[EventDate "2022.12.05"]
[EventType "tourn"]
[EventCountry "ISR"]
[SourceTitle "playchess.com"]
[Source "ChessBase"]
[SourceQuality "1"]
[TimeControl "40/5400+30:1800+30"]

{[%evp 9,72,-97,-40,-85,-85,-141,-123,-122,-59,-60,-53,-60,-27,-34,-31,-44,-40,-84,-58,-50,-57,-80,-54,-96,-89,-79,-77,-101,-99,-113,-43,-37,-50,-44,-27,-49,-39,-47,-44,-93,-63,-145,-128,-215,-157,-166,-158,-322,-158,-253,-237,-380,-366,-373,-256,-860,-860,-798,-783,-1157,-1152,-29995,-29996,-29997,-29998]} 1. d4 {[%emt 0:00:04]} Nf6 {[%emt 0:00:16]} 2. c4 {[%emt 0:00:14]} e6 {[%emt 0:00:20]} 3. Nf3 {[%emt 0:00:12]} d5 {[%emt 0:00:28]} 4. g3 {[%emt 0:00:52]} dxc4 {[%emt 0:00:56]} 5. Ne5 {[%emt 0:00:39]} c5 {[%emt 0:10:51]} ({Black should play} 5... Nc6 $17 {Hoping for ...Nxe5.} 6. Nxc6 Qd5) 6. Qa4+ {[%emt 0:11:32] E01: Catalan: Early deviations.} (6. Nxc4 $2 {loses.} Qd5 7. f3 (7. Qa4+ $2 Bd7 $19) 7... Qxc4 $19) 6... Nbd7 {[%emt 0:00:29] [#]} 7. e3 $146 {[%emt 0:21:11]} ({White should try} 7. Nxc4 cxd4 8. Bd2) ({Predecessor:} 7. Be3 Nd5 8. Nc3 N5b6 9. Qb5 cxd4 10. Bxd4 Qc7 11. Bg2 a6 12. Qa5 Bc5 13. Nxd7 Bxd4 14. Nxb6 Bxb6 {0-1 (33) Gaizauskaite,G (1852)-Stremavicius,P (2082) Lithuania 2019}) 7... cxd4 $17 {[%emt 0:01:29]} 8. exd4 {[%emt 0:00:02][%cal Of1g2] [#] Black is better.} Be7 {[%emt 0:00:32]} ({Better is} 8... b5 $1 $17 {[%cal Rb5a4]} 9. Qxb5 Rb8) 9. Bg2 $15 {[%emt 0:00:20][%cal Ob1c3]} O-O {[%emt 0:00:27] Threatens to win with ...Nxe5.} 10. Nxc4 {[%emt 0:00:20]} Nb6 {[%emt 0:16:48]} (10... b5 $5 {[%cal Rb5a4]} 11. Qa5 (11. Qxb5 Rb8 $17) 11... Rb8 12. Qxd8 Bxd8 $17) 11. Nxb6 {[%emt 0:12:51]} Qxb6 {[%emt 0:00:03]} 12. O-O {[%emt 0:00:19]} Bd7 {[%emt 0:00:03]} 13. Qd1 {[%emt 0:09:04]} Bc6 {[%emt 0:00:08]} 14. Bxc6 {[%emt 0:06:12]} Qxc6 {[%emt 0:00:26]} 15. Nc3 {[%emt 0:03:15][%cal Bb1c3,Bc3e2,Be2f4][%mdl 32]} Rfd8 {[%emt 0:00:18]} 16. Bf4 {[%emt 0:01:04]} Bc5 {[%emt 0:09:13]} 17. Ne2 {[%emt 0:02:19] aiming for Rc1.} Bb6 {[%emt 0:00:07]} (17... Qe4 {seems wilder.} 18. Be5 Ng4 19. Bf4 Bxd4 20. Nxd4 Nf6) 18. Rc1 {[%emt 0:02:59]} Qb5 {[%emt 0:02:09]} 19. Rc2 {[%emt 0:07:18]} Qh5 {[%emt 0:02:08] Black has more active pieces.} (19... Qf5 $17 20. Qd2 Qh3) 20. Bc7 $1 {[%emt 0:05:21]} Bxc7 {[%emt 0:11:55]} 21. Rxc7 {[%emt 0:00:03]} b6 {[%emt 0:00:11]} 22. Nf4 {[%emt 0:01:59]} Qb5 {[%emt 0:01:01]} 23. Qe2 {[%emt 0:00:35]} Qa4 {[%emt 0:00:48]} 24. Rd1 {[%emt 0:12:05]} (24. d5 $15 Nxd5 25. Nxd5 Rxd5 26. Rfc1) 24... Qxa2 {[%emt 0:02:38]} (24... Rxd4 {simplifies} 25. Rxd4 Qxd4 26. Nd3 Ne8) 25. g4 {[%emt 0:01:25]} (25. Nh5 $15 Ne8 26. Rc3) 25... Qa4 {[%emt 0:15:52]} 26. Rd2 {[%emt 0:00:41]} (26. Qf3 $17) 26... Rd7 {[%emt 0:04:10][%cal Bd8d7,Bd7d4,Bd4g4][%mdl 32]} 27. Qf3 {[%emt 0:00:23]} Rad8 {[%emt 0:00:34]} 28. b3 $2 {[%emt 0:00:21] Now White is beyond hope.} (28. Rxd7 $17 Qxd7 29. h4) 28... Qb5 {[%emt 0:00:43]} (28... Qa1+ $19 {is more deadly.} 29. Rd1 Qxd1+ 30. Qxd1 Rxc7) 29. Rdc2 {[%emt 0:00:34]} (29. Rxd7 $17 {keeps fighting.} Qxd7 30. g5) 29... Rxd4 $19 {[%emt 0:00:42]} 30. Rc1 {[%emt 0:00:42] Against Rd1+} (30. R2c4 {is a better defense.}) 30... e5 {[%emt 0:02:17][%cal Be6e5,Be5e4][%mdl 32]} 31. Ng2 {[%emt 0:00:28]} Rxg4 {[%emt 0:02:24] Strongly threatening ...e4.} 32. Rxa7 $2 {[%emt 0:00:08]} (32. Rc8 Rgd4 33. Qa8) 32... e4 {[%emt 0:00:45]} 33. Qe3 {[%emt 0:00:47]} h6 {[%emt 0:00:41] ...Rd3 is the strong threat.} 34. h3 {[%emt 0:00:08]} Rg6 {[%emt 0:00:48]} 35. Rcc7 {[%emt 0:00:47]} Rd1+ {[%emt 0:00:47]} 36. Kh2 {[%emt 0:00:04] [#]} Rh1+ $3 {[%emt 0:00:31][%mdl 512] Weighted Error Value: White=0.83/Black=0.21 (precise)} 0-1

[Event "Israeli Women Championship 2022"]
[Site "Yosiah Arad"]
[Date "2022.12.09"]
[Round "5.3"]
[White "Tashkinova, Sofiia"]
[Black "Ovechkin, Lilia"]
[Result "0-1"]
[ECO "B00"]
[WhiteElo "2006"]
[BlackElo "1680"]
[Annotator "TA"]
[PlyCount "84"]
[EventDate "2022.12.05"]
[EventType "tourn"]
[EventCountry "ISR"]
[SourceTitle "playchess.com"]
[Source "ChessBase"]
[SourceQuality "1"]
[TimeControl "40/5400+30:1800+30"]

{[%evp 11,84,46,56,40,40,45,40,42,49,33,56,57,59,58,56,39,65,69,79,0,93,7,5,-29,-29,-43,0,0,0,0,0,0,0,-13,-8,-22,-22,-32,0,-8,0,-14,-1,-33,0,-23,-31,-47,-47,-49,-20,-27,-26,-205,-207,-255,-254,-262,-255,-320,-277,-436,-435,-374,-295,-325,-294,-293,-283,-29976,-29978,-29983,-29984,-29984,-29985]} 1. e4 {[%emt 0:00:01] ChessBase II} b6 {[%emt 0:00:53]} 2. d4 {[%emt 0:01:35]} Bb7 {[%emt 0:00:10]} 3. Bd3 {[%emt 0:03:29]} e6 {[%emt 0:00:21]} 4. Nf3 {[%emt 0:01:54]} Nf6 {[%emt 0:02:20]} 5. Qe2 {[%emt 0:01:26]} d5 {[%emt 0:04:01]} 6. e5 {[%emt 0:02:43]} Ne4 {[%emt 0:09:43]} 7. Nbd2 {[%emt 0:01:44] B00: Queen's Fianchetto Defence, Nimzowitsch Defence.} (7. O-O $5 {[%cal Rc2c4]}) 7... Nxd2 {[%emt 0:05:16]} 8. Bxd2 {[%emt 0:01:16]} c5 {[%emt 0:02:13]} 9. c3 {[%emt 0:00:38] White is slightly better.} Be7 {[%emt 0:11:19] The main line 9...Be7 scores better than 9...Nc6.} 10. a3 {[%emt 0:02:09]} c4 {[%emt 0:05:05]} 11. Bc2 {[%emt 0:00:38]} Nc6 {[%emt 0:00:29]} 12. O-O {[%emt 0:05:05]} h6 {[%emt 0:10:09]} 13. Ne1 {[%emt 0:03:20]} Kd7 {[%emt 0:06:55]} 14. f4 {[%emt 0:01:16]} g6 {[%emt 0:00:33] [#] Inhibits f5.} 15. b3 $146 {[%emt 0:03:13]} (15. g4 $1 $16) ({Predecessor:} 15. g4 Qg8 16. Ng2 Rf8 17. Ne3 h5 18. g5 Na5 19. b3 Rc8 20. bxc4 Nxc4 21. Nxc4 Rxc4 {½-½ (38) Krannich,H (1759)-Meng,G (1854) Mainz 1997 EXT 2000 [ChessBase II]}) 15... Ba6 {[%emt 0:01:10] [#]} (15... cxb3 $1 $11 {remains equal.} 16. Bxb3 Na5) 16. bxc4 {[%emt 0:03:03]} (16. b4 $1 $16) 16... Bxc4 {[%emt 0:00:56]} 17. Bd3 {[%emt 0:00:12]} Na5 {[%emt 0:00:47]} 18. a4 {[%emt 0:08:53]} a6 {[%emt 0:00:16]} 19. Nc2 {[%emt 0:01:47]} Bxd3 {[%emt 0:06:44]} 20. Qxd3 {[%emt 0:00:15]} Nc4 {[%emt 0:00:31]} 21. Ne3 {[%emt 0:01:52]} Rc8 {[%emt 0:05:23]} 22. Rfb1 {[%emt 0:04:00][%cal Bf1b1,Bb1b3,Bb3b4][%mdl 32]} Nxe3 {[%emt 0:00:42]} (22... h5 {looks sharper.} 23. Ra2 Rc6 24. Nxc4 Rxc4 25. Rab2 Kc6) 23. Bxe3 {[%emt 0:03:19]} Rc4 {[%emt 0:00:02]} 24. Bd2 {[%emt 0:05:21]} Qc7 {[%emt 0:01:32]} 25. g4 {[%emt 0:05:11]} Rg8 {[%emt 0:03:52]} 26. Rb3 {[%emt 0:03:05]} Bd8 {[%emt 0:04:59]} 27. Rb4 {[%emt 0:04:30]} Be7 {[%emt 0:00:25]} 28. Rb3 {[%emt 0:08:21]} Qc6 {[%emt 0:00:10]} 29. Rab1 {[%emt 0:01:29]} Bd8 {[%emt 0:00:02]} 30. Rb4 {[%emt 0:00:48]} a5 {[%emt 0:00:27]} 31. Rxc4 {[%emt 0:03:09]} dxc4 {[%emt 0:07:28]} 32. Qe2 {[%emt 0:08:29] Loses the game.} (32. Qc2 $1 $11) 32... Qxa4 $19 {[%emt 0:00:35]} 33. Be1 {[%emt 0:00:53]} Qc6 {[%emt 0:00:13]} 34. Bg3 {[%emt 0:00:24]} b5 {[%emt 0:00:36]} 35. f5 {[%emt 0:02:52]} Qd5 {[%emt 0:02:59]} ({Weaker is} 35... exf5 36. d5 Qb6+ 37. Kh1 $11 (37. Bf2 Qa6 $11)) 36. Rf1 {[%emt 0:01:54]} (36. f6 {was called for.} Bb6 37. h3) 36... gxf5 {[%emt 0:02:24]} 37. gxf5 {[%emt 0:00:16]} Rg7 {[%emt 0:01:12]} 38. Qh5 {[%emt 0:01:18]} Bg5 {[%emt 0:00:18]} 39. fxe6+ {[%emt 0:02:04]} Kxe6 {[%emt 0:00:06] ...Be3+ is the strong threat.} 40. h4 $2 {[%emt 0:02:17] [#]} (40. Kf2 $19) 40... Bf4 $1 {[%emt 0:01:36][%mdl 512] Black mates.} 41. Rf3 {[%emt 0:07:18] [#]} (41. Qxf7+ Rxf7) 41... Qxf3 $3 {[%emt 0:01:23][%mdl 512]} 42. Qxf3 {[%emt 0:04:11]} Rxg3+ {[%emt 0:00:12] Weighted Error Value: White=0.48/Black=0.14 (very precise)} (42... Bxg3 $2 43. Qf6+ Kd7 44. Qxg7 $18) 0-1

[Event "Israeli Women Championship 2022"]
[Site "Yosiah Arad"]
[Date "2022.12.09"]
[Round "5.4"]
[White "Reprun, Nadejda"]
[Black "Levitan, Ronit"]
[Result "1-0"]
[ECO "C95"]
[WhiteElo "1979"]
[BlackElo "1989"]
[Annotator "TA"]
[PlyCount "89"]
[EventDate "2022.12.05"]
[EventType "tourn"]
[EventCountry "ISR"]
[SourceTitle "playchess.com"]
[Source "ChessBase"]
[SourceQuality "1"]
[TimeControl "40/5400+30:1800+30"]

{[%evp 21,89,26,28,15,29,22,41,23,36,21,27,29,41,15,21,14,27,6,6,6,57,57,59,59,67,-65,-58,-58,-66,-58,-59,-100,-103,-100,-100,-109,-115,-144,-134,-156,-109,-199,-166,-167,-102,-90,-85,-78,-30,-10,-29,-15,-42,-97,-101,-135,14,-95,-80,-222,-197,-623,1139,1137,1124,1122,1108,396,1100,1097]} 1. e4 {[%emt 0:00:02]} e5 {[%emt 0:00:27]} 2. Nf3 {[%emt 0:00:04]} Nc6 {[%emt 0:00:10]} 3. Bb5 {[%emt 0:00:08]} a6 {[%emt 0:00:13]} 4. Ba4 {[%emt 0:00:06]} Nf6 {[%emt 0:00:05]} 5. O-O {[%emt 0:00:14]} Be7 {[%emt 0:00:22]} 6. Re1 {[%emt 0:00:44]} b5 {[%emt 0:00:12]} 7. Bb3 {[%emt 0:00:05]} d6 {[%emt 0:00:03]} 8. c3 {[%emt 0:00:11]} O-O {[%emt 0:00:05]} 9. h3 {[%emt 0:00:57]} Nb8 {[%emt 0:00:43]} 10. d4 {[%emt 0:00:07]} Nbd7 {[%emt 0:00:08]} 11. Nbd2 {[%emt 0:00:27]} c5 {[%emt 0:00:09]} 12. Bc2 {[%emt 0:00:34] C95: Closed Ruy Lopez: Breyer Variation with 10 d4.} Re8 {[%emt 0:01:52]} 13. a4 {[%emt 0:04:58]} Rb8 {[%emt 0:02:39]} 14. axb5 {[%emt 0:12:18] White is slightly better.} axb5 {[%emt 0:00:17] [#]} 15. b3 $146 {[%emt 0:12:42]} ({Predecessor:} 15. b4 Bf8 16. Nf1 cxd4 17. cxd4 exd4 18. Nxd4 Bb7 19. Nxb5 Bxe4 20. Nd4 Bxc2 21. Nxc2 Rxe1 22. Qxe1 {½-½ (30) Yagupov,I (2405)-Balashov,Y (2470) Tula 2019}) 15... Bf8 {[%emt 0:03:51]} 16. d5 {[%emt 0:00:18]} g6 {[%emt 0:03:59]} 17. b4 {[%emt 0:03:50]} Qc7 {[%emt 0:06:48]} 18. Nb3 {[%emt 0:04:29]} Nb6 {[%emt 0:08:35]} 19. Na5 {[%emt 0:05:43]} Bd7 {[%emt 0:00:11] Against Nc6} 20. Be3 {[%emt 0:05:09]} c4 {[%emt 0:02:39]} (20... Ra8 $11) 21. Qd2 {[%emt 0:02:10]} Bg7 {[%emt 0:03:00]} 22. Red1 {[%emt 0:16:24]} Rec8 {[%emt 0:00:57]} 23. Nc6 {[%emt 0:01:47] White is more active.} (23. Nh2 $14) 23... Bxc6 $15 {[%emt 0:00:37]} 24. dxc6 {[%emt 0:00:02]} Ne8 {[%emt 1:04:28]} 25. Ra6 {[%emt 0:00:59]} Qxc6 {[%emt 0:00:00]} 26. Rda1 {[%emt 0:00:05]} Nc7 {[%emt 0:00:00]} 27. Ra7 {[%emt 0:05:19]} Ra8 {[%emt 0:00:00]} 28. R7a5 {[%emt 0:03:16]} Rxa5 {[%emt 0:00:00]} 29. bxa5 {[%emt 0:01:42]} Nd7 {[%emt 0:00:00]} 30. Rd1 {[%emt 0:00:34]} Ne8 {[%emt 0:00:00]} (30... Bf8 $142 31. Nh2 Ra8) 31. Ng5 {[%emt 0:01:05]} (31. Qd5 $17) 31... Ndf6 {[%emt 0:00:00]} 32. f4 {[%emt 0:02:23]} h6 {[%emt 0:00:00]} ({Better is} 32... Ra8 $19 33. fxe5 dxe5) 33. fxe5 $17 {[%emt 0:00:33]} dxe5 {[%emt 0:00:00]} 34. Nf3 {[%emt 0:00:08][%csl LRe5,LRh6]} Nxe4 {[%emt 0:00:00]} (34... Qe6 $17) 35. Bxe4 $11 {[%emt 0:00:07]} Qxe4 {[%emt 0:00:00]} 36. Bxh6 {[%emt 0:00:22]} Bf6 {[%emt 0:00:00]} 37. Qf2 {[%emt 0:09:46]} (37. Ng5 $15 Qd3 38. Qc1) 37... Qc6 {[%emt 0:00:00]} 38. Qe3 {[%emt 0:02:43]} Qc5 {[%emt 0:00:00]} (38... e4 $17 39. Ng5 (39. Nd4 Qd5 $17) 39... Bd8 40. Nxe4 Bxa5) 39. a6 {[%emt 0:01:39] [#]} (39. Qxc5 $11 Rxc5 40. a6) 39... Qc7 $1 $17 {[%emt 0:01:09]} 40. Rd5 {[%emt 0:02:28]} (40. g4 $17) 40... Qc6 $19 {[%emt 0:00:52][%csl LRa6,LRd5]} 41. Qe4 {[%emt 0:33:05]} (41. Rd1) 41... Nc7 $4 {[%emt 0:20:36][%mdl 8192] [#]} (41... Nd6 $19 42. Nxe5 Nxe4 43. Nxc6 Rxc6) 42. Rd8+ $3 $18 {[%emt 0:01:47][%mdl 576] Discovered Attack, Double Attack} Ne8 {[%emt 0:00:09]} 43. Qxc6 {[%emt 0:00:00]} Rxc6 {[%emt 0:00:05]} 44. Rxe8+ {[%emt 0:00:00]} Kh7 {[%emt 0:00:03]} 45. a7 {[%emt 0:00:00] Weighted Error Value: White=0.52/Black=0.19 (very precise)} 1-0

[Event "Israeli Women Championship 2022"]
[Site "Yosiah Arad"]
[Date "2022.12.09"]
[Round "5.5"]
[White "Kochavi, Dana"]
[Black "Orian, Noga"]
[Result "0-1"]
[ECO "B90"]
[WhiteElo "1928"]
[BlackElo "1947"]
[Annotator "TA"]
[PlyCount "78"]
[EventDate "2022.12.05"]
[EventType "tourn"]
[EventCountry "ISR"]
[SourceTitle "playchess.com"]
[Source "ChessBase"]
[SourceQuality "1"]
[TimeControl "40/5400+30:1800+30"]

{[%evp 13,78,8,1,2,6,10,8,15,10,7,41,6,14,15,104,-7,0,-79,-54,-45,-45,-36,-32,-87,-63,-91,-92,-132,-131,-120,-127,-143,-142,-143,-140,-143,-143,-150,-104,-250,-252,-418,-428,-435,-448,-713,-712,-657,-708,-697,-696,-708,-643,-572,-629,-649,-618,-642,-640,-607,-580,-691,-661,-645,-650,-639,-639]} 1. e4 {[%emt 0:00:30]} c5 {[%emt 0:00:30]} 2. Nf3 {[%emt 0:00:30]} d6 {[%emt 0:00:30]} 3. d4 {[%emt 0:00:30]} cxd4 {[%emt 0:00:30]} 4. Nxd4 {[%emt 0:00:30]} Nf6 {[%emt 0:00:30]} 5. Nc3 {[%emt 0:00:30]} a6 {[%emt 0:00:30]} 6. h3 {[%emt 0:00:30]} e5 {[%emt 0:00:30]} 7. Nde2 {[%emt 0:00:30]} b5 {[%emt 0:00:30]} 8. g4 {[%emt 0:00:30] B90: Sicilian Najdorf: Unusual White 6th moves, 6 Be3 Ng4 and 6 Be3 e5.} b4 {[%emt 0:00:30] Inhibits g5.} 9. Nd5 {[%emt 0:00:30]} Nxd5 {[%emt 0:00:30]} 10. Qxd5 {[%emt 0:00:30] The position is equal.} Ra7 {[%emt 0:00:30]} 11. Bg2 {[%emt 0:00:30] [#]} Rc7 $146 {[%emt 0:00:30]} ({Predecessor:} 11... Be6 12. Qd2 a5 13. a3 Rb7 14. axb4 axb4 15. O-O Be7 16. Ng3 O-O 17. Nf5 Nc6 {1-0 (40) Ponkratov,P (2632)-Bocharov,D (2524) Khanty-Mansiysk 2019}) 12. c3 {[%emt 0:00:30]} (12. Be3 $5 {[%cal Re3b6]}) 12... Be6 {[%emt 0:00:30]} 13. Qd1 {[%emt 0:00:30]} Bc4 {[%emt 0:00:30]} (13... a5 $11) 14. O-O {[%emt 0:00:30]} (14. cxb4 $16 h5 15. Be3) 14... bxc3 $11 {[%emt 0:00:30]} 15. bxc3 {[%emt 0:00:30]} (15. Nxc3 $11 {keeps the balance.} Bxf1 16. Bxf1) 15... Be7 {[%emt 0:00:30] Black is more active.} 16. Re1 {[%emt 0:00:30]} O-O $36 {[%emt 0:00:30][%mdl 2048] Black is more active.} 17. Ng3 {[%emt 0:00:30]} g6 {[%emt 0:00:30]} (17... Nd7 {feels hotter.} 18. Nf5 Nc5 19. Be3 Qd7) 18. Ba3 {[%emt 0:00:30]} (18. Bh6 $15) 18... Rc6 {[%emt 0:00:30]} 19. Qc2 {[%emt 0:00:30]} Nd7 {[%emt 0:00:30][%cal Bb8d7,Bd7b6,Bb6c4,Bc4a3][%mdl 32]} 20. Bf1 {[%emt 0:00:30]} Qc7 {[%emt 0:00:30]} 21. Re3 {[%emt 0:00:30]} Rc8 {[%emt 0:00:30]} 22. Rd1 {[%emt 0:00:30]} Bxf1 {[%emt 0:00:30]} 23. Nxf1 {[%emt 0:00:30]} Qa5 {[%emt 0:00:30]} ({And not} 23... Rxc3 24. Rxc3 Qxc3 25. Qxc3 Rxc3 26. Bxd6 Bxd6 27. Rxd6 $15) 24. Qb2 {[%emt 0:00:30]} Nb6 {[%emt 0:00:30] [#] Threatens to win with ...Nc4.} ({Don't play} 24... Rxc3 25. Bb4 Qa4 26. Bxc3 $18) 25. Bb4 {[%emt 0:00:30]} Qb5 {[%emt 0:00:30]} (25... Nc4 $142 26. Bxa5 Nxb2) 26. Red3 {[%emt 0:00:30] White does not recover from this.} (26. Qb3 $17) 26... Nc4 $19 {[%emt 0:00:30]} 27. Qb3 {[%emt 0:00:30]} (27. Qa1 {was necessary.}) 27... a5 {[%emt 0:00:30][%cal Ba6a5,Ba5a4][%mdl 32]} 28. Rd5 {[%emt 0:00:30] Black is clearly winning.} Qa6 {[%emt 0:00:30]} 29. Ba3 {[%emt 0:00:30]} (29. a4 $142) 29... a4 {[%emt 0:00:30]} 30. Qb5 {[%emt 0:00:30]} Qxb5 {[%emt 0:00:30]} 31. Rxb5 {[%emt 0:00:30]} Nxa3 {[%emt 0:00:30]} 32. Rb7 {[%emt 0:00:30]} R6c7 {[%emt 0:00:30]} 33. Rxc7 {[%emt 0:00:30]} Rxc7 {[%emt 0:00:30]} 34. Ne3 {[%emt 0:00:30]} Rb7 {[%emt 0:00:30] Hoping for ...Rb2.} 35. Nd5 {[%emt 0:00:30]} Kf8 {[%emt 0:00:30]} 36. Nb4 {[%emt 0:00:30]} Rc7 {[%emt 0:00:30]} 37. Rd3 {[%emt 0:00:30]} Rc4 {[%emt 0:00:30]} 38. f3 {[%emt 0:00:30]} Nb5 {[%emt 0:00:30]} 39. Nd5 {[%emt 0:00:30]} Bd8 {[%emt 0:00:30] Weighted Error Value: White=0.42/Black=0.13 (very precise)} 0-1

[Event "Israeli Women Championship 2022"]
[Site "Yosiah Arad"]
[Date "2022.12.10"]
[Round "6.1"]
[White "Shvayger, Yuliya"]
[Black "Efroimski, Marsel"]
[Result "1/2-1/2"]
[ECO "B70"]
[WhiteElo "2350"]
[BlackElo "2470"]
[Annotator "TA"]
[PlyCount "50"]
[EventDate "2022.12.05"]
[EventType "tourn"]
[EventCountry "ISR"]
[SourceTitle "playchess.com"]
[Source "ChessBase"]
[SourceQuality "1"]
[TimeControl "40/5400+30:1800+30"]

{[%evp 15,50,0,16,0,0,0,8,0,0,0,0,-13,-9,-7,-2,0,0,0,0,0,0,0,0,0,0,0,0,0,0,0,0,0,35,25,27,8,36]} 1. e4 {[%emt 0:00:02]} c5 {[%emt 0:00:03]} 2. Nf3 {[%emt 0:00:05]} d6 {[%emt 0:00:04]} 3. d4 {[%emt 0:00:30]} cxd4 {[%emt 0:00:03]} 4. Nxd4 {[%emt 0:00:04]} Nf6 {[%emt 0:00:03]} 5. Nc3 {[%emt 0:00:15]} Nc6 {[%emt 0:00:04]} 6. g3 {[%emt 0:00:23]} g6 {[%emt 0:00:16]} 7. Nde2 {[%emt 0:00:32]} Bg7 {[%emt 0:00:15]} 8. Bg2 {[%emt 0:00:02]} Bd7 {[%emt 0:01:05]} 9. O-O {[%emt 0:08:43] B70: Sicilian Dragon: 6 g3 and 6 Be2 (without a later Be3).} h5 {[%emt 0:00:04]} 10. h4 {[%emt 0:07:19]} Qc8 {[%emt 0:04:44]} 11. Nd5 {[%emt 0:01:45]} Nxd5 12. exd5 {[%emt 0:00:23]} Ne5 {[%emt 0:01:56] [#]} 13. Nd4 $146 {[%emt 0:05:17]} ({Predecessor:} 13. c3 O-O 14. Bg5 Bg4 15. f3 Bh3 16. b3 Qc5+ 17. Kh2 Bf5 18. Qd2 Rfe8 19. Rad1 {0-1 (38) Martin,J (2385)-Warmerdam,M (2599) Reykjavik 2022}) 13... Bg4 {[%emt 0:08:53]} 14. f3 {[%emt 0:01:03]} Bh3 {[%emt 0:02:35]} 15. c3 {[%emt 0:03:06]} Bxg2 {[%emt 0:03:02]} 16. Kxg2 {[%emt 0:00:01]} Qc4 {[%emt 0:02:32]} 17. Qb3 {[%emt 0:07:26]} O-O {[%emt 0:05:12]} 18. Bg5 {[%emt 0:02:33]} Rfe8 {[%emt 0:03:52]} 19. Rad1 {[%emt 0:10:16]} (19. Qxb7 Reb8 20. Qxe7 Rxb2+ 21. Kg1 Qc8 $19) 19... Rac8 {[%emt 0:07:43]} 20. Rf2 {[%emt 0:01:33][%cal Bf1f2,Bf2e2,Be2e4][%mdl 32]} (20. Qxb7 $2 {too greedy.} Rb8 21. Qxa7 Ra8 $19) 20... Qa6 {[%emt 0:01:30]} 21. Re2 {[%emt 0:10:08]} Rc5 {[%emt 0:09:33]} 22. Re4 {[%emt 0:00:57]} b6 {[%emt 0:08:26]} 23. Nc2 {[%emt 0:09:42][%cal Bd4c2,Bc2b4,Bb4d3][%mdl 32]} Rcc8 {[%emt 0:09:55]} 24. Nb4 {[%emt 0:03:36]} Qb7 {[%emt 0:01:24]} 25. Nd3 {[%emt 0:00:32]} Qa6 {[%emt 0:11:03] An interesting draw.   Weighted Error Value: White=0.04 (flawless) /Black=0.04 (flawless)} 1/2-1/2